fUST/lending_fUST_20250713
["ID","MTS","AMOUNT","RATE_DAILY","PERIOD"]
[371687026,1752387033828,-460.0,0.00016604,2]
[371687027,1752387033838,-460.0,0.00016604,2]
[371687028,1752387033847,-150.58136473,0.00016604,2]
[371687029,1752387033864,-307.42103928,0.00016604,2]
[371687030,1752387033874,-460.0,0.00016604,2]
[371687031,1752387033883,-460.0,0.00016604,2]
[371687032,1752387033893,-464.43733562,0.00016604,2]
[371687033,1752387033902,-460.96496218,0.00016604,2]
[371687034,1752387033911,-460.82372384,0.00016604,2]
[371687035,1752387033921,-465.06979185,0.00016604,2]
[371687036,1752387033931,-460.0,0.00016604,2]
[371687037,1752387033940,-460.0,0.00016604,2]
[371687038,1752387033950,-460.0,0.00016604,2]
[371687039,1752387033959,-460.0,0.00016604,2]
[371687040,1752387033970,-460.0,0.00016604,2]
[371687041,1752387033980,-460.0,0.00016604,2]
[371687042,1752387033989,-460.0,0.00016604,2]
[371687043,1752387033998,-460.0,0.00016604,2]
[371687044,1752387034008,-460.0,0.00016604,2]
[371687045,1752387034017,-460.0,0.00016604,2]
[371687046,1752387034027,-461.30544743,0.00016604,2]
[371687047,1752387034037,-460.0,0.00016604,2]
[371687048,1752387034046,-276.0,0.00016604,2]
[371687049,1752387034056,-460.0,0.00016604,2]
[371687050,1752387034065,-460.0,0.00016604,2]
[371687051,1752387034075,-460.0,0.00016604,2]
[371687052,1752387034084,-460.0,0.00016604,2]
[371687053,1752387034094,-463.68600545,0.00016604,2]
[371687054,1752387034104,-462.97220982,0.00016604,2]
[371687055,1752387034114,-460.0,0.00016604,2]
[371687056,1752387034123,-460.0,0.00016604,2]
[371687057,1752387034133,-460.0,0.00016604,2]
[371687058,1752387034143,-460.0,0.00016604,2]
[371687059,1752387034152,-460.0,0.00016604,2]
[371687060,1752387034162,-460.0,0.00016604,2]
[371687061,1752387034172,-460.0,0.00016604,2]
[371687062,1752387034182,-460.0,0.00016604,2]
[371687063,1752387034191,-460.0,0.00016604,2]
[371687064,1752387034201,-460.0,0.00016604,2]
[371687065,1752387034210,-460.0,0.00016604,2]
[371687066,1752387034221,-460.0,0.00016604,2]
[371687067,1752387034231,-460.0,0.00016604,2]
[371687068,1752387034241,-460.0,0.00016604,2]
[371687069,1752387034250,-406.35111497,0.00016604,2]
[371687070,1752387034260,-460.0,0.00016604,2]
[371687071,1752387034270,-466.01776952,0.00016604,2]
[371687072,1752387034279,-555.89589733,0.00016604,2]
[371687073,1752387034289,-117.53005104,0.00016604,2]
[371687074,1752387034301,-307.44282912,0.00016604,2]
[371687075,1752387034314,-35.02711984,0.00016604,2]
[371687076,1752387034324,-460.0,0.00016604,2]
[371687077,1752387034334,-460.0,0.00016604,2]
[371687078,1752387034344,-460.0,0.00016604,2]
[371687079,1752387034354,-460.0,0.00016604,2]
[371687080,1752387034364,-461.57941331,0.00016604,2]
[371687081,1752387034373,-463.5180697,0.00016604,2]
[371687082,1752387034384,-460.0,0.00016604,2]
[371687083,1752387034394,-384.6065614,0.00016604,2]
[371687084,1752387034404,-462.25984247,0.00016604,2]
[371687085,1752387034414,-460.0,0.00016604,2]
[371687086,1752387034424,-461.47195804,0.00016604,2]
[371687087,1752387034434,-460.0,0.00016604,2]
[371687088,1752387034444,-460.0,0.00016604,2]
[371687089,1752387034454,-463.64877413,0.00016604,2]
[371687090,1752387034464,-460.0,0.00016604,2]
[371687091,1752387034475,-460.0,0.00016604,2]
[371687092,1752387034484,-460.0,0.00016604,2]
[371687093,1752387034496,-195.65346373,0.00016604,2]
[371687094,1752387034506,-460.0,0.00016604,2]
[371687095,1752387034516,-462.66013177,0.00016604,2]
[371687096,1752387034526,-460.0,0.00016604,2]
[371687097,1752387034536,-460.0,0.00016604,2]
[371687098,1752387034546,-549.03814759,0.00016604,2]
[371687099,1752387034555,-619.33,0.00016604,2]
[371687100,1752387034565,-460.0,0.00016604,2]
[371687101,1752387034577,-460.0,0.00016604,2]
[371687102,1752387034587,-460.0,0.00016604,2]
[371687103,1752387034597,-900.96,0.00016604,2]
[371687104,1752387034607,-900.96,0.00016604,2]
[371687105,1752387034617,-460.0,0.00016604,2]
[371687106,1752387034626,-460.0,0.00016604,2]
[371687107,1752387034635,-1156.65,0.00016604,2]
[371687108,1752387034645,-460.0,0.00016604,2]
[371687109,1752387034655,-460.0,0.00016604,2]
[371687110,1752387034664,-460.0,0.00016604,2]
[371687111,1752387034674,-460.0,0.00016604,2]
[371687112,1752387034683,-460.0,0.00016604,2]
[371687113,1752387034693,-198.49488775,0.00016604,2]
[371687114,1752387034702,-460.0,0.00016604,2]
[371687115,1752387034712,-460.0,0.00016604,2]
[371687116,1752387034722,-460.0,0.00016604,2]
[371687117,1752387034731,-599.00586481,0.00016604,2]
[371687118,1752387034742,-460.0,0.00016604,2]
[371687119,1752387034859,-460.0,0.00016604,2]
[371687120,1752387034873,-460.0,0.00016604,2]
[371687121,1752387034886,-460.0,0.00016604,2]
[371687122,1752387034895,-460.0,0.00016604,2]
[371687123,1752387034905,-460.0,0.00016604,2]
[371687124,1752387034915,-463.50643555,0.00016604,2]
[371687125,1752387034924,-533.55,0.00016604,2]
[371687126,1752387034935,-460.74461743,0.00016604,2]
[371687127,1752387034945,-460.0,0.00016604,2]
[371687128,1752387034955,-460.0,0.00016604,2]
[371687129,1752387034964,-460.0,0.00016604,2]
[371687130,1752387034974,-460.0,0.00016604,2]
[371687131,1752387034983,-460.0,0.00016604,2]
[371687132,1752387034993,-460.0,0.00016604,2]
[371687133,1752387035002,-2178.68,0.00016604,2]
[371687134,1752387035012,-460.0,0.00016604,2]
[371687135,1752387035021,-596.96,0.00016604,2]
[371687136,1752387035031,-460.0,0.00016604,2]
[371687137,1752387035040,-461.65504058,0.00016604,2]
[371687138,1752387035050,-460.0,0.00016604,2]
[371687139,1752387035059,-460.0,0.00016604,2]
[371687140,1752387035069,-524.66,0.00016604,2]
[371687141,1752387035078,-460.0,0.00016604,2]
[371687142,1752387035088,-460.0,0.00016604,2]
[371687143,1752387035098,-462.46185476,0.00016604,2]
[371687144,1752387035107,-460.0,0.00016604,2]
[371687145,1752387035116,-460.0,0.00016604,2]
[371687146,1752387035126,-460.0,0.00016604,2]
[371687147,1752387035136,-460.0,0.00016604,2]
[371687148,1752387035147,-401.87063106,0.00016604,2]
[371687149,1752387035157,-462.22105326,0.00016604,2]
[371687150,1752387035166,-460.0,0.00016604,2]
[371687151,1752387035177,-460.0,0.00016604,2]
[371687152,1752387035187,-462.67026264,0.00016604,2]
[371687153,1752387035198,-460.0,0.00016604,2]
[371687154,1752387035208,-460.0,0.00016604,2]
[371687155,1752387035218,-460.0,0.00016604,2]
[371687156,1752387035228,-460.0,0.00016604,2]
[371687157,1752387035238,-460.0,0.00016604,2]
[371687158,1752387035249,-460.0,0.00016604,2]
[371687159,1752387035258,-460.0,0.00016604,2]
[371687160,1752387035268,-494.6881851,0.00016604,2]
[371687161,1752387035280,-460.0,0.00016604,2]
[371687162,1752387035293,-500.0,0.00016605,2]
[371687163,1752387035304,-500.0,0.00016605,2]
[371687164,1752387035313,-500.0,0.00016605,2]
[371687165,1752387035323,-500.0,0.00016605,2]
[371687166,1752387035332,-460.0,0.00016605,2]
[371687167,1752387035342,-460.0,0.00016605,2]
[371687168,1752387035352,-460.0,0.00016605,2]
[371687169,1752387035362,-460.0,0.00016605,2]
[371687170,1752387035371,-460.0,0.00016605,2]
[371687171,1752387035381,-460.0,0.00016605,2]
[371687172,1752387035391,-563.78977974,0.00016605,2]
[371687173,1752387035400,-460.0,0.00016605,2]
[371687174,1752387035411,-732.20792309,0.00016605,2]
[371687175,1752387035420,-460.0,0.00016605,2]
[371687176,1752387035429,-460.0,0.00016605,2]
[371687177,1752387035439,-460.0,0.00016605,2]
[371687178,1752387035449,-460.0,0.00016605,2]
[371687179,1752387035458,-460.0,0.00016605,2]
[371687180,1752387035468,-460.0,0.00016605,2]
[371687181,1752387035478,-460.0,0.00016605,2]
[371687182,1752387035488,-460.0,0.00016605,2]
[371687183,1752387035501,-460.0,0.00016605,2]
[371687184,1752387035512,-460.0,0.00016605,2]
[371687185,1752387035524,-460.0,0.00016605,2]
[371687186,1752387035534,-460.0,0.00016605,2]
[371687187,1752387035544,-460.0,0.00016605,2]
[371687188,1752387035554,-460.0,0.00016605,2]
[371687189,1752387035564,-460.0,0.00016605,2]
[371687190,1752387035577,-460.0,0.00016605,2]
[371687191,1752387035588,-460.0,0.00016605,2]
[371687192,1752387035598,-505.7,0.00016605,2]
[371687193,1752387035608,-505.7,0.00016605,2]
[371687194,1752387035619,-460.0,0.00016605,2]
[371687195,1752387035631,-500.0,0.00016605,2]
[371687196,1752387035643,-462.49392026,0.00016605,2]
[371687197,1752387035653,-500.0,0.00016605,2]
[371687198,1752387035663,-900.96,0.00016605,2]
[371687199,1752387035672,-900.96,0.00016605,2]
[371687200,1752387035683,-900.96,0.00016605,2]
[371687201,1752387035692,-460.0,0.00016606,2]
[371687202,1752387035703,-460.0,0.00016606,2]
[371687203,1752387035713,-460.0,0.00016606,2]
[371687204,1752387035723,-460.0,0.00016606,2]
[371687205,1752387035733,-460.0,0.00016606,2]
[371687206,1752387035744,-414.87065176,0.00016606,2]
[371687207,1752387035754,-460.0,0.00016606,2]
[371687208,1752387035764,-460.0,0.00016606,2]
[371687209,1752387035774,-460.0,0.00016606,2]
[371687210,1752387035783,-460.0,0.00016606,2]
[371687211,1752387035793,-487.1939014,0.00016606,2]
[371687212,1752387035802,-460.0,0.00016606,2]
[371687213,1752387035811,-460.0,0.00016606,2]
[371687214,1752387035821,-460.0,0.00016606,2]
[371687215,1752387035830,-460.0,0.00016606,2]
[371687216,1752387035840,-462.39176709,0.00016606,2]
[371687217,1752387035850,-460.0,0.00016606,2]
[371687218,1752387035859,-460.0,0.00016606,2]
[371687219,1752387035869,-460.0,0.00016606,2]
[371687220,1752387035879,-460.0,0.00016606,2]
[371687221,1752387035888,-460.0,0.00016606,2]
[371687222,1752387035898,-460.0,0.00016606,2]
[371687223,1752387035907,-460.0,0.00016606,2]
[371687224,1752387035918,-460.0,0.00016606,2]
[371687225,1752387035927,-460.0,0.00016606,2]
[371687226,1752387035937,-460.0,0.00016606,2]
[371687227,1752387035947,-460.0,0.00016606,2]
[371687228,1752387035956,-460.0,0.00016606,2]
[371687229,1752387035965,-460.0,0.00016606,2]
[371687230,1752387035975,-460.0,0.00016606,2]
[371687231,1752387035984,-460.0,0.00016606,2]
[371687232,1752387035994,-460.0,0.00016606,2]
[371687233,1752387036003,-460.0,0.00016606,2]
[371687234,1752387036012,-500.0,0.00016606,2]
[371687235,1752387036022,-500.0,0.00016606,2]
[371687236,1752387036032,-500.0,0.00016606,2]
[371687237,1752387036041,-460.0,0.00016606,2]
[371687238,1752387036051,-460.0,0.00016606,2]
[371687239,1752387036060,-460.0,0.00016606,2]
[371687240,1752387036070,-460.0,0.00016606,2]
[371687241,1752387036080,-460.0,0.00016606,2]
[371687242,1752387036089,-460.0,0.00016606,2]
[371687243,1752387036101,-466.48360078,0.00016606,2]
[371687244,1752387036110,-460.0,0.00016606,2]
[371687245,1752387036119,-836.09,0.00016606,2]
[371687246,1752387036129,-460.0,0.00016606,2]
[371687247,1752387036138,-460.0,0.00016606,2]
[371687248,1752387036148,-460.0,0.00016606,2]
[371687249,1752387036160,-460.0,0.00016606,2]
[371687250,1752387036169,-460.0,0.00016606,2]
[371687251,1752387036178,-562.16607268,0.00016606,2]
[371687252,1752387036188,-460.0,0.00016606,2]
[371687253,1752387036198,-460.0,0.00016606,2]
[371687254,1752387036207,-460.0,0.00016606,2]
[371687255,1752387036218,-460.0,0.00016606,2]
[371687256,1752387036228,-460.0,0.00016606,2]
[371687257,1752387036237,-461.90597102,0.00016606,2]
[371687258,1752387036247,-505.7,0.00016606,2]
[371687259,1752387036256,-460.0,0.00016606,2]
[371687260,1752387036265,-336.90392628,0.00016607,2]
[371687261,1752387036274,-262.78405349,0.00016607,2]
[371687262,1752387036284,-500.0,0.00016607,2]
[371687263,1752387036293,-500.0,0.00016607,2]
[371687264,1752387036303,-151.0,0.00016609,2]
[371687265,1752387036312,-151.0,0.00016609,2]
[371687266,1752387036322,-151.0,0.00016609,2]
[371687267,1752387036331,-151.0,0.00016609,2]
[371687268,1752387036340,-151.317787,0.00016609,2]
[371687269,1752387036350,-151.0,0.00016609,2]
[371687270,1752387036359,-151.0,0.00016609,2]
[371687271,1752387036369,-151.0,0.00016609,2]
[371687272,1752387036379,-151.0,0.00016609,2]
[371687273,1752387036388,-500.0,0.00016673,2]
[371687274,1752387036397,-500.0,0.00016673,2]
[371687275,1752387036407,-501.60193488,0.00016673,2]
[371687276,1752387036417,-500.0,0.00016689,2]
[371687277,1752387036427,-1356.0,0.00016689,2]
[371687278,1752387036436,-198.0,0.00016689,2]
[371687279,1752387036446,-198.0,0.00016689,2]
[371687280,1752387036455,-198.0,0.00016689,2]
[371687281,1752387036465,-198.0,0.00016689,2]
[371687282,1752387036477,-151.0,0.00016689,2]
[371687283,1752387036486,-500.0,0.00016716,2]
[371687284,1752387036499,-1356.0,0.00016716,2]
[371687285,1752387036509,-900.96,0.00016743,2]
[371687286,1752387036518,-500.0,0.00016744,2]
[371687287,1752387036528,-1356.0,0.00016744,2]
[371687288,1752387036539,-193.505592,0.00016755,2]
[371687289,1752387036549,-500.0,0.00016771,2]
[371687290,1752387036559,-1356.0,0.00016771,2]
[371687291,1752387036571,-500.0,0.00016799,2]
[371687292,1752387036582,-1356.0,0.00016799,2]
[371687293,1752387036593,-500.0,0.00016826,2]
[371687294,1752387036604,-1356.0,0.00016826,2]
[371687295,1752387036614,-570.0,0.00016853,2]
[371687296,1752387036623,-1356.0,0.00016853,2]
[371687297,1752387036633,-502.45877181,0.00016873,2]
[371687298,1752387036646,-501.15297185,0.00016873,2]
[371687299,1752387036656,-500.0,0.00016873,2]
[371687300,1752387036665,-500.0,0.00016873,2]
[371687301,1752387036674,-500.0,0.00016873,2]
[371687302,1752387036685,-500.0,0.00016873,2]
[371687303,1752387036695,-463.85214761,0.00016876,2]
[371687304,1752387036705,-460.0,0.00016876,2]
[371687305,1752387036714,-551.55,0.00016876,2]
[371687306,1752387036726,-334.63251385,0.00016876,3]
[371687307,1752387036736,-460.0,0.00016876,2]
[371687308,1752387036746,-1098.88,0.00016876,2]
[371687309,1752387036755,-460.0,0.00016876,2]
[371687310,1752387036764,-460.0,0.00016876,2]
[371687311,1752387036773,-460.0,0.00016876,2]
[371687312,1752387036782,-460.0,0.00016876,2]
[371687313,1752387036791,-952.97,0.00016876,2]
[371687314,1752387036800,-460.0,0.00016876,2]
[371687315,1752387036809,-460.0,0.00016877,2]
[371687316,1752387036819,-460.0,0.00016877,2]
[371687317,1752387036829,-460.0,0.00016877,2]
[371687318,1752387036838,-460.0,0.00016877,2]
[371687319,1752387036847,-460.0,0.00016877,2]
[371687320,1752387036856,-460.0,0.00016877,2]
[371687321,1752387036865,-460.0,0.00016877,2]
[371687322,1752387036874,-460.0,0.00016877,2]
[371687323,1752387036883,-460.0,0.00016877,2]
[371687324,1752387036892,-466.04810326,0.00016877,2]
[371687325,1752387036902,-460.0,0.00016877,2]
[371687326,1752387036911,-460.0,0.00016877,2]
[371687327,1752387036919,-460.0,0.00016877,2]
[371687328,1752387036929,-460.0,0.00016877,2]
[371687329,1752387036938,-900.96,0.00016877,2]
[371687330,1752387036947,-460.0,0.00016877,2]
[371687331,1752387036956,-460.0,0.00016877,2]
[371687332,1752387036965,-460.0,0.00016877,2]
[371687333,1752387036976,-460.0,0.00016877,2]
[371687334,1752387036985,-273.93270609,0.00016877,2]
[371687335,1752387036995,-1491.82,0.00016877,2]
[371687336,1752387037005,-460.0,0.00016877,2]
[371687337,1752387037015,-460.0,0.00016877,2]
[371687338,1752387037024,-460.0,0.00016877,2]
[371687339,1752387037033,-460.0,0.00016877,2]
[371687340,1752387037042,-460.0,0.00016877,2]
[371687341,1752387037051,-552.28,0.00016877,2]
[371687342,1752387037061,-1806.86,0.00016877,2]
[371687343,1752387037070,-460.0,0.00016877,2]
[371687344,1752387037079,-460.0,0.00016877,2]
[371687345,1752387037088,-460.0,0.00016877,2]
[371687346,1752387037098,-494.51,0.00016877,2]
[371687347,1752387037107,-460.0,0.00016877,2]
[371687348,1752387037116,-460.0,0.00016877,2]
[371687349,1752387037126,-460.0,0.00016877,2]
[371687350,1752387037135,-460.0,0.00016878,2]
[371687351,1752387037144,-464.63392845,0.00016878,2]
[371687352,1752387037153,-350.96584799,0.00016878,2]
[371687353,1752387037163,-460.0,0.00016878,2]
[371687354,1752387037173,-469.10632396,0.00016878,2]
[371687355,1752387037182,-460.0,0.00016878,2]
[371687356,1752387037191,-460.0,0.00016878,2]
[371687357,1752387037200,-460.0,0.00016878,2]
[371687358,1752387037209,-505.7,0.00016878,2]
[371687359,1752387037219,-460.0,0.00016878,2]
[371687360,1752387037230,-460.0,0.00016878,2]
[371687361,1752387037239,-460.0,0.00016878,2]
[371687362,1752387037249,-293.72238221,0.00016878,2]
[371687363,1752387037258,-460.0,0.00016878,2]
[371687364,1752387037267,-460.0,0.00016878,2]
[371687365,1752387037277,-460.0,0.00016878,2]
[371687366,1752387037286,-565.75,0.00016878,2]
[371687367,1752387037296,-460.0,0.00016878,2]
[371687368,1752387037305,-460.0,0.00016878,2]
[371687369,1752387037315,-460.0,0.00016878,2]
[371687370,1752387037324,-465.50405786,0.00016878,2]
[371687371,1752387037334,-460.0,0.00016878,2]
[371687372,1752387037344,-460.0,0.00016878,2]
[371687373,1752387037353,-460.0,0.00016878,2]
[371687374,1752387037363,-460.0,0.00016878,2]
[371687375,1752387037372,-460.0,0.00016878,2]
[371687376,1752387037381,-460.0,0.00016878,2]
[371687377,1752387037391,-460.0,0.00016878,2]
[371687378,1752387037399,-460.0,0.00016878,2]
[371687379,1752387037408,-460.0,0.00016878,2]
[371687380,1752387037418,-526.47311081,0.00016878,2]
[371687381,1752387037427,-460.0,0.00016878,2]
[371687382,1752387037440,-460.0,0.00016878,2]
[371687383,1752387037450,-460.0,0.00016878,2]
[371687384,1752387037459,-460.0,0.00016878,2]
[371687385,1752387037471,-460.0,0.00016878,2]
[371687386,1752387037480,-460.0,0.00016878,2]
[371687387,1752387037490,-460.0,0.00016878,2]
[371687388,1752387037503,-619.33,0.00016878,2]
[371687389,1752387037513,-460.0,0.00016878,2]
[371687390,1752387037523,-460.0,0.00016878,2]
[371687391,1752387037534,-460.0,0.00016878,2]
[371687392,1752387037544,-900.96,0.00016878,2]
[371687393,1752387037553,-460.0,0.00016878,2]
[371687394,1752387037562,-1156.65,0.00016878,2]
[371687395,1752387037573,-460.0,0.00016878,2]
[371687396,1752387037582,-466.63479276,0.00016878,2]
[371687397,1752387037592,-455.58154844,0.00016878,2]
[371687398,1752387037601,-540.0,0.00016878,2]
[371687399,1752387037611,-460.0,0.00016878,2]
[371687400,1752387037620,-460.0,0.00016878,2]
[371687401,1752387037630,-460.0,0.00016878,2]
[371687402,1752387037639,-460.0,0.00016878,2]
[371687403,1752387037649,-460.0,0.00016878,2]
[371687404,1752387037659,-460.0,0.00016878,2]
[371687405,1752387037668,-460.0,0.00016878,2]
[371687406,1752387037678,-533.55,0.00016878,2]
[371687407,1752387037686,-460.0,0.00016878,2]
[371687408,1752387037695,-460.0,0.00016878,2]
[371687409,1752387037704,-460.0,0.00016878,2]
[371687410,1752387037714,-266.11271616,0.00016878,2]
[371687411,1752387037724,-460.0,0.00016878,2]
[371687412,1752387037734,-2178.68,0.00016878,2]
[371687414,1752387037743,-596.96,0.00016878,2]
[371687415,1752387037753,-460.0,0.00016878,2]
[371687416,1752387037763,-460.0,0.00016878,2]
[371687417,1752387037772,-460.0,0.00016878,2]
[371687418,1752387037781,-524.66,0.00016878,2]
[371687419,1752387037886,-469.89547871,0.00016878,2]
[371687420,1752387037909,-460.0,0.00016878,2]
[371687422,1752387037919,-460.0,0.00016878,2]
[371687424,1752387037929,-504.95520683,0.00016878,2]
[371687426,1752387037938,-460.0,0.00016878,2]
[371687428,1752387037947,-158.44706921,0.00016878,2]
[371687430,1752387037957,-460.0,0.00016878,2]
[371687432,1752387037967,-460.0,0.00016878,2]
[371687434,1752387037977,-467.39904636,0.00016879,2]
[371687436,1752387037987,-460.0,0.00016879,2]
[371687438,1752387037997,-460.0,0.00016879,2]
[371687440,1752387038007,-460.0,0.00016879,2]
[371687442,1752387038016,-460.0,0.00016879,2]
[371687444,1752387038025,-460.0,0.00016879,2]
[371687447,1752387038035,-505.7,0.00016879,2]
[371687448,1752387038045,-900.96,0.00016879,2]
[371687451,1752387038054,-460.0,0.0001688,2]
[371687453,1752387038063,-460.0,0.0001688,2]
[371687455,1752387038074,-460.0,0.0001688,2]
[371687456,1752387038085,-460.0,0.0001688,2]
[371687458,1752387038095,-460.0,0.0001688,2]
[371687460,1752387038104,-460.0,0.0001688,2]
[371687462,1752387038114,-460.0,0.0001688,2]
[371687465,1752387038126,-460.0,0.0001688,2]
[371687467,1752387038135,-477.09184766,0.0001688,2]
[371687469,1752387038145,-460.0,0.0001688,2]
[371687471,1752387038154,-836.09,0.0001688,2]
[371687473,1752387038163,-460.0,0.0001688,2]
[371687475,1752387038172,-460.0,0.0001688,2]
[371687476,1752387038182,-460.0,0.0001688,2]
[371687479,1752387038191,-1356.0,0.00016881,2]
[371687480,1752387038201,-151.0,0.00016881,2]
[371687482,1752387038210,-151.0,0.00016881,2]
[371687484,1752387038220,-151.0,0.00016881,2]
[371687487,1752387038229,-151.0,0.00016882,2]
[371687489,1752387038240,-151.0,0.00016882,2]
[371687491,1752387038249,-151.0,0.00016882,2]
[371687493,1752387038259,-1356.0,0.00016908,2]
[371687495,1752387038268,-1356.0,0.00016936,2]
[371687497,1752387038277,-1356.0,0.00016963,2]
[371687498,1752387038286,-1356.0,0.0001699,2]
[371687501,1752387038295,-1101.81193335,0.00017018,2]
[371687562,1752387038883,-254.18806665,0.00017018,2]
[371687565,1752387038893,-1356.0,0.00017045,2]
[371687566,1752387038902,-1356.0,0.00017073,2]
[371687568,1752387038912,-151.0,0.00017099,2]
[371687570,1752387038922,-151.0,0.00017099,2]
[371687573,1752387038931,-151.0,0.00017099,2]
[371687574,1752387038940,-1356.0,0.000171,2]
[371687576,1752387038949,-1228.01193335,0.000171,2]
[371687579,1752387038961,-10681.65333981,0.000171,2]
[371687581,1752387038970,-321.49748842,0.00017105,2]
[371687583,1752387038980,-1356.0,0.00017127,2]
[371687585,1752387038989,-522.74190424,0.0001715,2]
[371687587,1752387038998,-551.55,0.0001715,2]
[371687589,1752387039009,-460.0,0.0001715,2]
[371687591,1752387039019,-1098.88,0.0001715,2]
[371687593,1752387039028,-460.0,0.0001715,2]
[371687595,1752387039037,-460.0,0.0001715,2]
[371687597,1752387039047,-463.09784621,0.0001715,2]
[371687599,1752387039056,-952.97,0.0001715,2]
[371687601,1752387039065,-460.0,0.0001715,2]
[371687602,1752387039074,-460.0,0.00017151,2]
[371687604,1752387039083,-484.10220023,0.00017151,2]
[371687606,1752387039092,-460.0,0.00017151,2]
[371687608,1752387039102,-460.0,0.00017151,2]
[371687610,1752387039111,-460.0,0.00017151,2]
[371687612,1752387039120,-513.03,0.00017151,2]
[371687614,1752387039129,-900.96,0.00017151,2]
[371687616,1752387039138,-460.0,0.00017151,2]
[371687618,1752387039148,-460.0,0.00017151,2]
[371687620,1752387039158,-460.0,0.00017151,2]
[371687622,1752387039168,-460.0,0.00017151,2]
[371687624,1752387039177,-1491.82,0.00017151,2]
[371687626,1752387039186,-353.1357365,0.00017151,2]
[371687628,1752387039196,-460.0,0.00017151,2]
[371687630,1752387039205,-460.0,0.00017151,2]
[371687632,1752387039215,-220.24104234,0.00017151,2]
[371687634,1752387039225,-460.0,0.00017151,2]
[371687636,1752387039235,-552.28,0.00017151,2]
[371687638,1752387039244,-1806.86,0.00017151,2]
[371687640,1752387039253,-460.0,0.00017151,2]
[371687642,1752387039264,-460.0,0.00017151,2]
[371687644,1752387039274,-460.0,0.00017151,2]
[371687645,1752387039283,-494.51,0.00017151,2]
[371687647,1752387039293,-460.0,0.00017151,2]
[371687649,1752387039302,-521.29226932,0.00017151,2]
[371687650,1752387039311,-460.0,0.00017151,2]
[371687651,1752387039320,-460.0,0.00017152,2]
[371687652,1752387039329,-460.0,0.00017152,2]
[371687653,1752387039339,-460.0,0.00017152,2]
[371687654,1752387039348,-460.0,0.00017152,2]
[371687655,1752387039357,-460.0,0.00017152,2]
[371687656,1752387039366,-505.7,0.00017152,2]
[371687657,1752387039375,-463.77791415,0.00017152,2]
[371687658,1752387039384,-460.0,0.00017152,2]
[371687659,1752387039393,-460.0,0.00017152,2]
[371687660,1752387039402,-460.0,0.00017152,2]
[371687661,1752387039411,-460.0,0.00017152,2]
[371687662,1752387039420,-460.0,0.00017152,2]
[371687663,1752387039430,-460.0,0.00017152,2]
[371687664,1752387039439,-460.0,0.00017152,2]
[371687665,1752387039448,-460.0,0.00017152,2]
[371687666,1752387039457,-460.0,0.00017152,2]
[371687667,1752387039467,-159.96084277,0.00017152,2]
[371687668,1752387039476,-460.0,0.00017152,2]
[371687669,1752387039486,-460.0,0.00017152,2]
[371687670,1752387039497,-460.0,0.00017152,2]